[Event "Titled Tuesday Blitz January 25 2022"]
[White "Bacrot, Etienne"]
[Black "Tregubov, Pavel V."]
[WhiteFideId "605506"]
[BlackFideId "4115341"]
[WhiteElo "2673"]
[BlackElo "2341"]
[Result "1-0"]
[Round "08"]
[TimeControl "180+1"]
[Date "2022.01.26"]
[WhiteClock "0:00:07"]
[BlackClock "0:00:02"]

1. Nf3 {[%clk 0:03:00]}  Nf6 {[%clk 0:02:55]} 2. g3 {[%clk 0:03:00]}  c5 {[%clk 0:02:53]} 3. Bg2 {[%clk 0:03:01]}  Nc6 {[%clk 0:02:54]} 4. O-O {[%clk 0:03:01]}  e5 {[%clk 0:02:54]} 5. c4 {[%clk 0:03:01]}  d5 {[%clk 0:02:55]} 6. cxd5 {[%clk 0:03:01]}  Nxd5 {[%clk 0:02:55]} 7. Nc3 {[%clk 0:03:01]}  Be6 {[%clk 0:02:56]} 8. d3 {[%clk 0:03:01]}  Be7 {[%clk 0:02:55]} 9. Bd2 {[%clk 0:03:01]}  O-O {[%clk 0:02:54]} 10. Rc1 {[%clk 0:03:01]}  Rc8 {[%clk 0:02:55]} 11. a3 {[%clk 0:03:00]}  f6 {[%clk 0:02:49]} 12. Ne4 {[%clk 0:02:59]}  b6 {[%clk 0:02:49]} 13. h4 {[%clk 0:02:57]}  Qd7 {[%clk 0:02:48]} 14. h5 {[%clk 0:02:56]}  Bh3 {[%clk 0:02:45]} 15. Bxh3 {[%clk 0:02:43]}  Qxh3 {[%clk 0:02:45]} 16. Qb3 {[%clk 0:02:44]}  Qe6 {[%clk 0:02:43]} 17. Nc3 {[%clk 0:02:37]}  Nf4 {[%clk 0:02:29]} 18. Qxe6+ {[%clk 0:02:32]}  Nxe6 {[%clk 0:02:30]} 19. Be3 {[%clk 0:02:21]}  Rfd8 {[%clk 0:02:29]} 20. Kg2 {[%clk 0:02:17]}  Ncd4 {[%clk 0:02:13]} 21. Bxd4 {[%clk 0:02:12]}  cxd4 {[%clk 0:02:11]} 22. Ne4 {[%clk 0:01:53]}  f5 {[%clk 0:01:52]} 23. Ned2 {[%clk 0:01:51]}  Bf6 {[%clk 0:01:53]} 24. Rfd1 {[%clk 0:01:11]}  Nc5 {[%clk 0:01:49]} 25. Rc4 {[%clk 0:00:51]}  b5 {[%clk 0:01:45]} 26. Rc2 {[%clk 0:00:47]}  Na4 {[%clk 0:01:43]} 27. Rdc1 {[%clk 0:00:47]}  Rxc2 {[%clk 0:01:39]} 28. Rxc2 {[%clk 0:00:47]}  Rd7 {[%clk 0:01:28]} 29. Rc8+ {[%clk 0:00:41]}  Kf7 {[%clk 0:01:28]} 30. b4 {[%clk 0:00:38]}  Nc3 {[%clk 0:01:22]} 31. Rc5 {[%clk 0:00:21]}  Ke6 {[%clk 0:01:09]} 32. Nb3 {[%clk 0:00:21]}  a6 {[%clk 0:00:56]} 33. Rc6+ {[%clk 0:00:21]}  Rd6 {[%clk 0:00:57]} 34. Nc5+ {[%clk 0:00:20]}  Kd5 {[%clk 0:00:55]} 35. Rxa6 {[%clk 0:00:19]}  Rxa6 {[%clk 0:00:54]} 36. Nxa6 {[%clk 0:00:20]}  Nxe2 {[%clk 0:00:54]} 37. Nc7+ {[%clk 0:00:20]}  Kc6 {[%clk 0:00:50]} 38. Ne8 {[%clk 0:00:20]}  e4 {[%clk 0:00:48]} 39. Nd2 {[%clk 0:00:19]}  Bg5 {[%clk 0:00:31]} 40. f4 {[%clk 0:00:17]}  exf3+ {[%clk 0:00:29]} 41. Nxf3 {[%clk 0:00:17]}  Bh6 {[%clk 0:00:22]} 42. Ne5+ {[%clk 0:00:17]}  Kd5 {[%clk 0:00:20]} 43. Nf7 {[%clk 0:00:17]}  Nc1 {[%clk 0:00:18]} 44. Nc7+ {[%clk 0:00:16]}  Kc6 {[%clk 0:00:17]} 45. Ne6 {[%clk 0:00:16]}  Nxd3 {[%clk 0:00:18]} 46. Nxd4+ {[%clk 0:00:16]}  Kd5 {[%clk 0:00:18]} 47. Nxf5 {[%clk 0:00:16]}  Bc1 {[%clk 0:00:17]} 48. Nxg7 {[%clk 0:00:16]}  Bxa3 {[%clk 0:00:17]} 49. Ng5 {[%clk 0:00:15]}  h6 {[%clk 0:00:12]} 50. Nf7 {[%clk 0:00:15]}  Bc1 {[%clk 0:00:12]} 51. Nf5 {[%clk 0:00:15]}  Nxb4 {[%clk 0:00:12]} 52. N7xh6 {[%clk 0:00:15]}  Nc2 {[%clk 0:00:11]} 53. Ng4 {[%clk 0:00:12]}  b4 {[%clk 0:00:11]} 54. h6 {[%clk 0:00:12]}  b3 {[%clk 0:00:08]} 55. h7 {[%clk 0:00:12]}  Bb2 {[%clk 0:00:09]} 56. Kf3 {[%clk 0:00:08]}  Bh8 {[%clk 0:00:09]} 57. Nge3+ {[%clk 0:00:07]}  Ke5 {[%clk 0:00:07]} 58. Ke2 {[%clk 0:00:04]}  Nb4 {[%clk 0:00:04]} 59. Nh4 {[%clk 0:00:03]}  Ke4 {[%clk 0:00:04]} 60. Nd1 {[%clk 0:00:03]}  Nd5 {[%clk 0:00:04]} 61. Ng6 {[%clk 0:00:03]}  Bf6 {[%clk 0:00:03]} 62. h8=Q {[%clk 0:00:03]}  Bxh8 {[%clk 0:00:04]} 63. Nxh8 {[%clk 0:00:04]}  Kf5 {[%clk 0:00:03]} 64. Kf3 {[%clk 0:00:04]}  Kf6 {[%clk 0:00:03]} 65. Ke4 {[%clk 0:00:03]}  Nb4 {[%clk 0:00:02]} 66. Kd4 {[%clk 0:00:03]}  Kg7 {[%clk 0:00:02]} 67. Kc4 {[%clk 0:00:04]}  Nc2 {[%clk 0:00:01]} 68. Kxb3 {[%clk 0:00:04]}  Ne1 {[%clk 0:00:02]} 69. Kc3 {[%clk 0:00:04]}  Kxh8 {[%clk 0:00:02]} 70. Kd2 {[%clk 0:00:05]}  Nf3+ {[%clk 0:00:02]} 71. Ke3 {[%clk 0:00:06]}  Ng5 {[%clk 0:00:02]} 72. Kf4 {[%clk 0:00:06]}  Ne6+ {[%clk 0:00:03]} 73. Ke5 {[%clk 0:00:07]}  Ng5 {[%clk 0:00:03]} 74. Ne3 {[%clk 0:00:08]}  Kg7 {[%clk 0:00:02]} 75. Kf5 {[%clk 0:00:08]}  Nf7 {[%clk 0:00:01]} 76. Ke6 {[%clk 0:00:08]}  Ng5+ {[%clk 0:00:01]} 77. Ke5 {[%clk 0:00:08]}  Nf7+ {[%clk 0:00:02]} 78. Kf5 {[%clk 0:00:08]}  Nh6+ {[%clk 0:00:02]} 79. Ke6 {[%clk 0:00:08]}  Nf7 {[%clk 0:00:03]} 80. Nf5+ {[%clk 0:00:08]}  Kf8 {[%clk 0:00:03]} 81. Kf6 {[%clk 0:00:08]}  Kg8 {[%clk 0:00:03]} 82. g4 {[%clk 0:00:08]}  Kf8 {[%clk 0:00:02]} 83. Ne7 {[%clk 0:00:07]} 1-0


[Site "https://www.chess.com"]

[Event "Titled Tuesday Blitz January 25 2022"]
[White "Bambino Filho, Antonio Carlos"]
[Black "Pakleza, Zbigniew"]
[WhiteFideId "2113163"]
[BlackFideId "1119290"]
[WhiteElo "2448"]
[BlackElo "2467"]
[Result "0-1"]
[Round "08"]
[TimeControl "180+1"]
[Date "2022.01.26"]
[WhiteClock "0:00:05"]
[BlackClock "0:00:04"]

1. d4 {[%clk 0:03:00]}  d6 {[%clk 0:03:00]} 2. c4 {[%clk 0:03:00]}  e5 {[%clk 0:03:00]} 3. Nf3 {[%clk 0:02:50]}  exd4 {[%clk 0:03:00]} 4. Nxd4 {[%clk 0:02:50]}  g6 {[%clk 0:03:00]} 5. g3 {[%clk 0:02:49]}  Bg7 {[%clk 0:03:00]} 6. Bg2 {[%clk 0:02:50]}  Ne7 {[%clk 0:03:01]} 7. O-O {[%clk 0:02:50]}  O-O {[%clk 0:03:02]} 8. Nc3 {[%clk 0:02:51]}  Nd7 {[%clk 0:03:02]} 9. Bg5 {[%clk 0:02:45]}  h6 {[%clk 0:02:58]} 10. Be3 {[%clk 0:02:45]}  Nb6 {[%clk 0:02:24]} 11. b3 {[%clk 0:02:41]}  c5 {[%clk 0:02:11]} 12. Ndb5 {[%clk 0:02:34]}  Nf5 {[%clk 0:01:51]} 13. Bd2 {[%clk 0:02:25]}  a6 {[%clk 0:01:50]} 14. Na3 {[%clk 0:02:25]}  Be6 {[%clk 0:01:39]} 15. Nc2 {[%clk 0:02:21]}  Re8 {[%clk 0:01:19]} 16. Rc1 {[%clk 0:02:20]}  Qc7 {[%clk 0:01:10]} 17. Ne3 {[%clk 0:02:11]}  Nd4 {[%clk 0:01:05]} 18. Re1 {[%clk 0:02:06]}  Rad8 {[%clk 0:01:01]} 19. Ncd5 {[%clk 0:02:03]}  Nxd5 {[%clk 0:00:59]} 20. Nxd5 {[%clk 0:02:03]}  Qc8 {[%clk 0:00:58]} 21. e3 {[%clk 0:02:00]}  Nc6 {[%clk 0:00:55]} 22. Bc3 {[%clk 0:01:57]}  Bxd5 {[%clk 0:00:41]} 23. Bxd5 {[%clk 0:01:52]}  Bxc3 {[%clk 0:00:38]} 24. Rxc3 {[%clk 0:01:52]}  Nb4 {[%clk 0:00:39]} 25. a3 {[%clk 0:01:42]}  Nxd5 {[%clk 0:00:37]} 26. Qxd5 {[%clk 0:01:43]}  b5 {[%clk 0:00:32]} 27. Rd1 {[%clk 0:01:39]}  Re6 {[%clk 0:00:32]} 28. Rcd3 {[%clk 0:01:37]}  Qc7 {[%clk 0:00:31]} 29. h4 {[%clk 0:01:31]}  h5 {[%clk 0:00:31]} 30. Qg5 {[%clk 0:01:27]}  Rd7 {[%clk 0:00:28]} 31. Rd5 {[%clk 0:01:22]}  Kg7 {[%clk 0:00:26]} 32. Qf4 {[%clk 0:01:22]}  Rf6 {[%clk 0:00:24]} 33. Qg5 {[%clk 0:01:16]}  Qa5 {[%clk 0:00:21]} 34. b4 {[%clk 0:00:48]}  cxb4 {[%clk 0:00:18]} 35. axb4 {[%clk 0:00:48]}  Qxb4 {[%clk 0:00:18]} 36. c5 {[%clk 0:00:49]}  a5 {[%clk 0:00:11]} 37. Rxd6 {[%clk 0:00:39]}  Rdxd6 {[%clk 0:00:12]} 38. cxd6 {[%clk 0:00:39]}  Rxd6 {[%clk 0:00:11]} 39. Qe5+ {[%clk 0:00:33]}  Rf6 {[%clk 0:00:10]} 40. Kg2 {[%clk 0:00:22]}  a4 {[%clk 0:00:11]} 41. Rd4 {[%clk 0:00:20]}  Qf8 {[%clk 0:00:07]} 42. Qxb5 {[%clk 0:00:16]}  a3 {[%clk 0:00:07]} 43. Qe5 {[%clk 0:00:13]}  Qa8+ {[%clk 0:00:05]} 44. e4 {[%clk 0:00:11]}  a2 {[%clk 0:00:05]} 45. Rd1 {[%clk 0:00:10]}  Qa6 {[%clk 0:00:03]} 46. Qd4 {[%clk 0:00:06]}  Qe2 {[%clk 0:00:02]} 47. e5 {[%clk 0:00:07]}  Rxf2+ {[%clk 0:00:02]} 48. Qxf2 {[%clk 0:00:06]}  Qxd1 {[%clk 0:00:02]} 49. Qf6+ {[%clk 0:00:07]}  Kg8 {[%clk 0:00:02]} 50. e6 {[%clk 0:00:07]}  Qd5+ {[%clk 0:00:03]} 51. Kh3 {[%clk 0:00:05]}  Qxe6+ {[%clk 0:00:04]} 0-1


[Site "https://www.chess.com"]

[Event "Titled Tuesday Blitz January 25 2022"]
[White "Carlsson, Ludvig"]
[Black "Punin, Andrii"]
[WhiteFideId "1727010"]
[BlackFideId "14112639"]
[WhiteElo "2178"]
[BlackElo "2357"]
[Result "1/2-1/2"]
[Round "08"]
[TimeControl "180+1"]
[Date "2022.01.26"]
[WhiteClock "0:00:06"]
[BlackClock "0:00:40"]

1. e4 {[%clk 0:03:00]}  c6 {[%clk 0:02:56]} 2. Nf3 {[%clk 0:03:00]}  d5 {[%clk 0:02:55]} 3. d3 {[%clk 0:03:00]}  Qc7 {[%clk 0:02:54]} 4. exd5 {[%clk 0:02:59]}  cxd5 {[%clk 0:02:54]} 5. c4 {[%clk 0:03:00]}  Nf6 {[%clk 0:02:48]} 6. Nc3 {[%clk 0:02:59]}  dxc4 {[%clk 0:02:43]} 7. dxc4 {[%clk 0:02:59]}  a6 {[%clk 0:02:41]} 8. Be2 {[%clk 0:02:50]}  e6 {[%clk 0:02:38]} 9. O-O {[%clk 0:02:51]}  Bc5 {[%clk 0:02:32]} 10. Bg5 {[%clk 0:02:40]}  Nbd7 {[%clk 0:02:31]} 11. Qc2 {[%clk 0:02:37]}  O-O {[%clk 0:02:30]} 12. a3 {[%clk 0:02:35]}  Ne5 {[%clk 0:02:13]} 13. Bxf6 {[%clk 0:02:28]}  Nxf3+ {[%clk 0:02:10]} 14. Bxf3 {[%clk 0:02:27]}  gxf6 {[%clk 0:02:10]} 15. Qd2 {[%clk 0:02:03]}  Qe5 {[%clk 0:01:58]} 16. Rfe1 {[%clk 0:01:58]}  Qg5 {[%clk 0:01:55]} 17. Qxg5+ {[%clk 0:01:45]}  fxg5 {[%clk 0:01:56]} 18. Ne4 {[%clk 0:01:45]}  Be7 {[%clk 0:01:56]} 19. Red1 {[%clk 0:01:42]}  Rb8 {[%clk 0:01:49]} 20. Nd6 {[%clk 0:01:41]}  Rd8 {[%clk 0:01:38]} 21. Nxc8 {[%clk 0:01:39]}  Rxd1+ {[%clk 0:01:36]} 22. Rxd1 {[%clk 0:01:40]}  Rxc8 {[%clk 0:01:36]} 23. Bxb7 {[%clk 0:00:47]}  Rxc4 {[%clk 0:01:36]} 24. Bxa6 {[%clk 0:00:41]}  Rc2 {[%clk 0:01:36]} 25. b4 {[%clk 0:00:38]}  Ra2 {[%clk 0:01:35]} 26. Rb1 {[%clk 0:00:33]}  Rxa3 {[%clk 0:01:34]} 27. Be2 {[%clk 0:00:29]}  Bd8 {[%clk 0:01:21]} 28. b5 {[%clk 0:00:26]}  Bb6 {[%clk 0:01:21]} 29. Kf1 {[%clk 0:00:26]}  Ra2 {[%clk 0:01:19]} 30. g3 {[%clk 0:00:25]}  Kg7 {[%clk 0:01:18]} 31. Rc1 {[%clk 0:00:24]}  Rb2 {[%clk 0:01:11]} 32. Rc6 {[%clk 0:00:24]}  Bd4 {[%clk 0:01:11]} 33. Rc4 {[%clk 0:00:24]}  Bb6 {[%clk 0:01:08]} 34. Rc6 {[%clk 0:00:20]}  Bd4 {[%clk 0:01:07]} 35. Rc4 {[%clk 0:00:19]}  e5 {[%clk 0:00:59]} 36. Rc6 {[%clk 0:00:14]}  h6 {[%clk 0:00:59]} 37. h3 {[%clk 0:00:13]}  f5 {[%clk 0:00:57]} 38. Rc7+ {[%clk 0:00:06]}  Kf8 {[%clk 0:00:56]} 39. Rc6 {[%clk 0:00:05]}  Kg7 {[%clk 0:00:41]} 40. Rc7+ {[%clk 0:00:05]}  Kf6 {[%clk 0:00:40]} 41. Rc6+ {[%clk 0:00:06]}  Kg7 {[%clk 0:00:40]} 1/2-1/2


[Site "https://www.chess.com"]

[Event "Titled Tuesday Blitz January 25 2022"]
[White "Demin, Vladimir"]
[Black "Maksimovic, Bojan"]
[WhiteFideId "4167457"]
[BlackFideId "14408120"]
[WhiteElo "2517"]
[BlackElo "2450"]
[Result "0-1"]
[Round "08"]
[TimeControl "180+1"]
[Date "2022.01.26"]
[WhiteClock "0:01:12"]
[BlackClock "0:00:52"]

1. d4 {[%clk 0:02:55]}  d5 {[%clk 0:02:59]} 2. Nc3 {[%clk 0:02:53]}  Nf6 {[%clk 0:02:59]} 3. Bf4 {[%clk 0:02:53]}  c5 {[%clk 0:02:57]} 4. e3 {[%clk 0:02:53]}  cxd4 {[%clk 0:02:56]} 5. exd4 {[%clk 0:02:52]}  Bg4 {[%clk 0:02:55]} 6. f3 {[%clk 0:02:48]}  Bd7 {[%clk 0:02:55]} 7. Bd3 {[%clk 0:02:42]}  Nc6 {[%clk 0:02:55]} 8. Nge2 {[%clk 0:02:42]}  g6 {[%clk 0:02:52]} 9. Nb5 {[%clk 0:02:33]}  Rc8 {[%clk 0:02:50]} 10. c3 {[%clk 0:02:26]}  a6 {[%clk 0:02:50]} 11. Na3 {[%clk 0:02:25]}  Bg7 {[%clk 0:02:50]} 12. Qd2 {[%clk 0:02:24]}  O-O {[%clk 0:02:49]} 13. h4 {[%clk 0:02:23]}  e5 {[%clk 0:02:43]} 14. dxe5 {[%clk 0:02:21]}  Nh5 {[%clk 0:02:43]} 15. Bh6 {[%clk 0:02:18]}  Nxe5 {[%clk 0:02:22]} 16. Bxg7 {[%clk 0:02:15]}  Kxg7 {[%clk 0:02:20]} 17. O-O-O {[%clk 0:02:12]}  Qa5 {[%clk 0:02:02]} 18. g4 {[%clk 0:02:04]}  Nxf3 {[%clk 0:01:57]} 19. Qe3 {[%clk 0:02:03]}  Bxg4 {[%clk 0:01:57]} 20. Rdf1 {[%clk 0:01:48]}  Rfe8 {[%clk 0:01:46]} 21. Qf2 {[%clk 0:01:48]}  Ne5 {[%clk 0:01:19]} 22. Bc2 {[%clk 0:01:38]}  Bxe2 {[%clk 0:01:17]} 23. Qxe2 {[%clk 0:01:37]}  Ng3 {[%clk 0:01:17]} 24. Qf2 {[%clk 0:01:33]}  Nxh1 {[%clk 0:01:15]} 25. Qf6+ {[%clk 0:01:32]}  Kg8 {[%clk 0:01:16]} 26. Rxh1 {[%clk 0:01:27]}  d4 {[%clk 0:01:15]} 27. h5 {[%clk 0:01:25]}  Re6 {[%clk 0:00:57]} 28. Qf4 {[%clk 0:01:14]}  Rxc3 {[%clk 0:00:53]} 29. hxg6 {[%clk 0:01:12]}  Nd3+ {[%clk 0:00:52]} 0-1


[Site "https://www.chess.com"]

[Event "Titled Tuesday Blitz January 25 2022"]
[White "Di Nicolantonio, Lucas"]
[Black "Dronavalli, Harika"]
[WhiteFideId "680460"]
[BlackFideId "5015197"]
[WhiteElo "2381"]
[BlackElo "2382"]
[Result "0-1"]
[Round "08"]
[TimeControl "180+1"]
[Date "2022.01.26"]
[WhiteClock "0:00:41"]
[BlackClock "0:01:13"]

1. f4 {[%clk 0:03:00]}  d5 {[%clk 0:02:56]} 2. Nf3 {[%clk 0:03:00]}  g6 {[%clk 0:02:57]} 3. g3 {[%clk 0:03:00]}  Bg7 {[%clk 0:02:57]} 4. Bg2 {[%clk 0:03:01]}  Nh6 {[%clk 0:02:58]} 5. d3 {[%clk 0:02:59]}  d4 {[%clk 0:02:56]} 6. c3 {[%clk 0:02:51]}  c5 {[%clk 0:02:55]} 7. e4 {[%clk 0:02:50]}  dxe3 {[%clk 0:02:55]} 8. Bxe3 {[%clk 0:02:50]}  Nd7 {[%clk 0:02:46]} 9. O-O {[%clk 0:02:43]}  O-O {[%clk 0:02:46]} 10. Kh1 {[%clk 0:02:42]}  Rb8 {[%clk 0:02:45]} 11. d4 {[%clk 0:02:39]}  Nf5 {[%clk 0:02:38]} 12. Bf2 {[%clk 0:02:36]}  cxd4 {[%clk 0:02:38]} 13. Nxd4 {[%clk 0:02:35]}  Nxd4 {[%clk 0:02:38]} 14. Bxd4 {[%clk 0:02:35]}  b6 {[%clk 0:02:35]} 15. Bxg7 {[%clk 0:02:32]}  Kxg7 {[%clk 0:02:35]} 16. Na3 {[%clk 0:02:28]}  Nf6 {[%clk 0:02:30]} 17. Nb5 {[%clk 0:02:22]}  a6 {[%clk 0:02:12]} 18. Nd4 {[%clk 0:02:09]}  Bb7 {[%clk 0:02:11]} 19. Bxb7 {[%clk 0:02:06]}  Rxb7 {[%clk 0:02:10]} 20. Qf3 {[%clk 0:02:06]}  Rd7 {[%clk 0:02:04]} 21. Rae1 {[%clk 0:01:56]}  Qc7 {[%clk 0:02:02]} 22. Re5 {[%clk 0:01:52]}  b5 {[%clk 0:01:51]} 23. Rfe1 {[%clk 0:01:45]}  b4 {[%clk 0:01:46]} 24. f5 {[%clk 0:01:32]}  bxc3 {[%clk 0:01:45]} 25. bxc3 {[%clk 0:01:32]}  Rc8 {[%clk 0:01:38]} 26. R1e3 {[%clk 0:01:23]}  Qd6 {[%clk 0:01:27]} 27. fxg6 {[%clk 0:01:15]}  hxg6 {[%clk 0:01:26]} 28. Qf4 {[%clk 0:00:52]}  Nd5 {[%clk 0:01:19]} 29. Nf5+ {[%clk 0:00:40]}  gxf5 {[%clk 0:01:18]} 30. Rxd5 {[%clk 0:00:41]}  Qxf4 {[%clk 0:01:13]} 0-1


[Site "https://www.chess.com"]

[Event "Titled Tuesday Blitz January 25 2022"]
[White "Djordjevic, Vuk"]
[Black "Pranav, V"]
[WhiteFideId "902098"]
[BlackFideId "25060783"]
[WhiteElo "2463"]
[BlackElo "2349"]
[Result "0-1"]
[Round "08"]
[TimeControl "180+1"]
[Date "2022.01.26"]
[WhiteClock "0:00:02"]
[BlackClock "0:00:32"]

1. d4 {[%clk 0:03:00]}  Nf6 {[%clk 0:02:59]} 2. Bg5 {[%clk 0:03:01]}  Ne4 {[%clk 0:02:59]} 3. Bf4 {[%clk 0:03:01]}  c5 {[%clk 0:02:59]} 4. f3 {[%clk 0:03:01]}  Qa5+ {[%clk 0:02:59]} 5. c3 {[%clk 0:03:01]}  Nf6 {[%clk 0:03:00]} 6. d5 {[%clk 0:03:02]}  Qb6 {[%clk 0:03:00]} 7. Bc1 {[%clk 0:03:01]}  e6 {[%clk 0:03:00]} 8. e4 {[%clk 0:03:01]}  c4 {[%clk 0:03:01]} 9. Nd2 {[%clk 0:02:52]}  exd5 {[%clk 0:02:39]} 10. exd5 {[%clk 0:02:51]}  Nxd5 {[%clk 0:02:40]} 11. Nxc4 {[%clk 0:02:48]}  Qe6+ {[%clk 0:02:39]} 12. Qe2 {[%clk 0:02:30]}  Be7 {[%clk 0:02:38]} 13. Nh3 {[%clk 0:02:16]}  Nc6 {[%clk 0:02:34]} 14. Nf4 {[%clk 0:02:14]}  Nxf4 {[%clk 0:02:27]} 15. Bxf4 {[%clk 0:02:15]}  O-O {[%clk 0:02:26]} 16. Qxe6 {[%clk 0:02:07]}  fxe6 {[%clk 0:02:23]} 17. Bd6 {[%clk 0:02:06]}  Kf7 {[%clk 0:02:15]} 18. O-O-O {[%clk 0:02:04]}  Bxd6 {[%clk 0:02:14]} 19. Nxd6+ {[%clk 0:02:00]}  Ke7 {[%clk 0:02:14]} 20. Bb5 {[%clk 0:01:58]}  a6 {[%clk 0:02:01]} 21. Ba4 {[%clk 0:01:58]}  b5 {[%clk 0:02:00]} 22. Bc2 {[%clk 0:01:58]}  g6 {[%clk 0:01:56]} 23. h4 {[%clk 0:01:56]}  Rh8 {[%clk 0:01:38]} 24. h5 {[%clk 0:01:44]}  gxh5 {[%clk 0:01:33]} 25. Rxh5 {[%clk 0:01:45]}  h6 {[%clk 0:01:33]} 26. g4 {[%clk 0:01:45]}  a5 {[%clk 0:01:25]} 27. Nxb5 {[%clk 0:01:37]}  Bb7 {[%clk 0:01:20]} 28. f4 {[%clk 0:01:24]}  Rag8 {[%clk 0:01:18]} 29. Rg1 {[%clk 0:00:42]}  Nd8 {[%clk 0:01:17]} 30. Nd4 {[%clk 0:00:37]}  Nf7 {[%clk 0:01:14]} 31. Rxa5 {[%clk 0:00:35]}  h5 {[%clk 0:01:14]} 32. g5 {[%clk 0:00:27]}  h4 {[%clk 0:01:14]} 33. Ra7 {[%clk 0:00:27]}  Nd8 {[%clk 0:01:09]} 34. f5 {[%clk 0:00:23]}  h3 {[%clk 0:00:55]} 35. f6+ {[%clk 0:00:19]}  Kf7 {[%clk 0:00:54]} 36. Rxb7 {[%clk 0:00:03]}  Nxb7 {[%clk 0:00:55]} 37. Nf3 {[%clk 0:00:04]}  d6 {[%clk 0:00:55]} 38. Rh1 {[%clk 0:00:03]}  Nc5 {[%clk 0:00:52]} 39. Kd2 {[%clk 0:00:02]}  Nd7 {[%clk 0:00:50]} 40. Ke3 {[%clk 0:00:02]}  Ne5 {[%clk 0:00:51]} 41. Nxe5+ {[%clk 0:00:02]}  dxe5 {[%clk 0:00:51]} 42. g6+ {[%clk 0:00:03]}  Kxf6 {[%clk 0:00:52]} 43. Be4 {[%clk 0:00:03]}  Rh4 {[%clk 0:00:52]} 44. b4 {[%clk 0:00:02]}  Rc8 {[%clk 0:00:49]} 45. Kd3 {[%clk 0:00:02]}  h2 {[%clk 0:00:44]} 46. b5 {[%clk 0:00:02]}  Rh3+ {[%clk 0:00:44]} 47. Kd2 {[%clk 0:00:02]}  Rcxc3 {[%clk 0:00:38]} 48. b6 {[%clk 0:00:02]}  Ra3 {[%clk 0:00:39]} 49. b7 {[%clk 0:00:02]}  Rxa2+ {[%clk 0:00:39]} 50. Kc1 {[%clk 0:00:01]}  Rh8 {[%clk 0:00:36]} 51. Kb1 {[%clk 0:00:01]}  Re2 {[%clk 0:00:36]} 52. Bf3 {[%clk 0:00:01]}  Rf2 {[%clk 0:00:35]} 53. Be4 {[%clk 0:00:01]}  Rb8 {[%clk 0:00:32]} 54. Kc1 {[%clk 0:00:02]}  Rf4 {[%clk 0:00:31]} 55. Bg2 {[%clk 0:00:02]}  e4 {[%clk 0:00:31]} 56. Rxh2 {[%clk 0:00:01]}  Rxb7 {[%clk 0:00:32]} 57. Kd2 {[%clk 0:00:02]}  Rf2+ {[%clk 0:00:31]} 58. Ke3 {[%clk 0:00:02]}  Rbb2 {[%clk 0:00:32]} 0-1


[Site "https://www.chess.com"]

[Event "Titled Tuesday Blitz January 25 2022"]
[White "Domingo Nunez, Alejandro"]
[Black "Seul, Georg"]
[WhiteFideId "22245561"]
[BlackFideId "4601653"]
[WhiteElo "2215"]
[BlackElo "2271"]
[Result "0-1"]
[Round "08"]
[TimeControl "180+1"]
[Date "2022.01.26"]
[WhiteClock "0:00:01"]
[BlackClock "0:00:10"]

1. c4 {[%clk 0:03:00]}  e5 {[%clk 0:02:59]} 2. Nc3 {[%clk 0:03:00]}  d6 {[%clk 0:03:00]} 3. g3 {[%clk 0:03:00]}  f5 {[%clk 0:03:00]} 4. Bg2 {[%clk 0:03:00]}  Nf6 {[%clk 0:03:00]} 5. d3 {[%clk 0:02:59]}  Be7 {[%clk 0:03:01]} 6. Rb1 {[%clk 0:03:00]}  O-O {[%clk 0:03:01]} 7. b4 {[%clk 0:03:00]}  Kh8 {[%clk 0:02:57]} 8. a4 {[%clk 0:02:59]}  a5 {[%clk 0:02:53]} 9. b5 {[%clk 0:02:56]}  Nbd7 {[%clk 0:02:52]} 10. e3 {[%clk 0:02:53]}  Nb6 {[%clk 0:02:41]} 11. Nge2 {[%clk 0:02:35]}  Qe8 {[%clk 0:02:40]} 12. Qb3 {[%clk 0:02:16]}  Qh5 {[%clk 0:02:36]} 13. h3 {[%clk 0:02:12]}  Rb8 {[%clk 0:02:32]} 14. d4 {[%clk 0:02:06]}  Be6 {[%clk 0:02:27]} 15. d5 {[%clk 0:02:06]}  Bc8 {[%clk 0:02:17]} 16. Bb2 {[%clk 0:02:01]}  Nbd7 {[%clk 0:02:17]} 17. Qc2 {[%clk 0:02:00]}  Nc5 {[%clk 0:02:16]} 18. Ba1 {[%clk 0:01:34]}  Qh6 {[%clk 0:02:15]} 19. b6 {[%clk 0:01:25]}  cxb6 {[%clk 0:02:03]} 20. Rxb6 {[%clk 0:01:26]}  Nfd7 {[%clk 0:01:46]} 21. Rb1 {[%clk 0:01:22]}  Na6 {[%clk 0:01:46]} 22. Nb5 {[%clk 0:01:21]}  Nb4 {[%clk 0:01:42]} 23. Qd2 {[%clk 0:01:16]}  Nc5 {[%clk 0:01:40]} 24. Bc3 {[%clk 0:01:03]}  Nbd3+ {[%clk 0:01:38]} 25. Kf1 {[%clk 0:01:04]}  b6 {[%clk 0:01:37]} 26. Na7 {[%clk 0:01:01]}  Ba6 {[%clk 0:01:31]} 27. Nc6 {[%clk 0:00:57]}  Rbe8 {[%clk 0:01:27]} 28. Rxb6 {[%clk 0:00:48]}  Bxc4 {[%clk 0:01:26]} 29. Nxa5 {[%clk 0:00:48]}  Ne4 {[%clk 0:00:42]} 30. Bxe4 {[%clk 0:00:22]}  fxe4 {[%clk 0:00:42]} 31. Rh2 {[%clk 0:00:22]}  Bxd5 {[%clk 0:00:38]} 32. Nc1 {[%clk 0:00:15]}  Qg6 {[%clk 0:00:30]} 33. Kg1 {[%clk 0:00:10]}  Rc8 {[%clk 0:00:24]} 34. Rb5 {[%clk 0:00:07]}  Ba8 {[%clk 0:00:22]} 35. Nab3 {[%clk 0:00:04]}  Bg5 {[%clk 0:00:20]} 36. Nxd3 {[%clk 0:00:03]}  exd3 {[%clk 0:00:20]} 37. Nc1 {[%clk 0:00:04]}  Qe4 {[%clk 0:00:19]} 38. h4 {[%clk 0:00:05]}  Rxf2 {[%clk 0:00:13]} 39. Qxf2 {[%clk 0:00:05]}  Bxe3 {[%clk 0:00:13]} 40. Rb2 {[%clk 0:00:01]}  Rf8 {[%clk 0:00:10]} 0-1


[Site "https://www.chess.com"]

[Event "Titled Tuesday Blitz January 25 2022"]
[White "Eljanov, Pavel"]
[Black "Sargsyan, Anna M."]
[WhiteFideId "14102951"]
[BlackFideId "13308130"]
[WhiteElo "2601"]
[BlackElo "2271"]
[Result "1-0"]
[Round "08"]
[TimeControl "180+1"]
[Date "2022.01.26"]
[WhiteClock "0:01:19"]
[BlackClock "0:00:01"]

1. c4 {[%clk 0:03:00]}  c6 {[%clk 0:02:55]} 2. Nf3 {[%clk 0:02:59]}  d5 {[%clk 0:02:56]} 3. g3 {[%clk 0:02:59]}  Nf6 {[%clk 0:02:56]} 4. Bg2 {[%clk 0:03:00]}  g6 {[%clk 0:02:50]} 5. b3 {[%clk 0:02:59]}  Bg7 {[%clk 0:02:51]} 6. Bb2 {[%clk 0:02:59]}  O-O {[%clk 0:02:51]} 7. O-O {[%clk 0:02:58]}  Re8 {[%clk 0:02:51]} 8. d4 {[%clk 0:02:55]}  Ne4 {[%clk 0:02:50]} 9. Nc3 {[%clk 0:02:54]}  Nd7 {[%clk 0:02:47]} 10. Nxe4 {[%clk 0:02:46]}  dxe4 {[%clk 0:02:48]} 11. Ng5 {[%clk 0:02:44]}  f5 {[%clk 0:02:46]} 12. Ne6 {[%clk 0:02:43]}  Qa5 {[%clk 0:02:46]} 13. Nxg7 {[%clk 0:02:35]}  Kxg7 {[%clk 0:02:46]} 14. d5+ {[%clk 0:02:29]}  Nf6 {[%clk 0:02:40]} 15. dxc6 {[%clk 0:02:27]}  bxc6 {[%clk 0:02:37]} 16. f3 {[%clk 0:02:21]}  exf3 {[%clk 0:02:33]} 17. exf3 {[%clk 0:02:19]}  e5 {[%clk 0:02:27]} 18. f4 {[%clk 0:02:19]}  Qc5+ {[%clk 0:02:04]} 19. Kh1 {[%clk 0:02:17]}  e4 {[%clk 0:02:04]} 20. Qd2 {[%clk 0:01:59]}  Be6 {[%clk 0:01:59]} 21. Bd4 {[%clk 0:01:54]}  Qe7 {[%clk 0:01:57]} 22. Qa5 {[%clk 0:01:51]}  Kg8 {[%clk 0:01:44]} 23. Rad1 {[%clk 0:01:49]}  Bf7 {[%clk 0:01:29]} 24. Rd2 {[%clk 0:01:36]}  Ng4 {[%clk 0:01:03]} 25. h3 {[%clk 0:01:32]}  Nf6 {[%clk 0:00:51]} 26. Rfd1 {[%clk 0:01:31]}  Nh5 {[%clk 0:00:51]} 27. Kh2 {[%clk 0:01:30]}  Qe6 {[%clk 0:00:27]} 28. Bf1 {[%clk 0:01:26]}  Qc8 {[%clk 0:00:06]} 29. Be2 {[%clk 0:01:24]}  Ng7 {[%clk 0:00:05]} 30. Bb2 {[%clk 0:01:21]}  Ne6 {[%clk 0:00:02]} 31. Qc3 {[%clk 0:01:20]}  c5 {[%clk 0:00:01]} 32. Qh8# {[%clk 0:01:19]} 1-0


[Site "https://www.chess.com"]